[Event "Stay Safe Play From Home 422"]
[Site "Emanuel Lasker Arena"]
[Date "2020.08.30"]
[Round "5"]
[White "Kongle"]
[Black "Timbre"]
[Result "1/2-1/2"]
[WhiteElo "1748"]
[BlackElo "1587"]
[Annotator "NA"]
[PlyCount "66"]
[EventDate "2020.08.30"]
[EventType "swiss (blitz)"]
[TimeControl "300"]

1. d4 {[%emt 0:00:02]} d5 {[%emt 0:00:11]} 2. c4 {[%emt 0:00:01]} c6 {[%emt 0:00:01]} 3. Nc3 {[%emt 0:00:01]} Nf6 {[%emt 0:00:01]} 4. Bg5 {[%emt 0:00:02]} e6 {[%emt 0:00:02]} 5. e3 {[%emt 0:00:01]} Be7 {[%emt 0:00:01]} 6. Nf3 {[%emt 0:00:01]} Nbd7 {[%emt 0:00:01]} 7. cxd5 {[%emt 0:00:04]} exd5 {[%emt 0:00:02]} 8. Bd3 {[%emt 0:00:01]} O-O {[%emt 0:00:03]} 9. O-O {[%emt 0:00:01]} Re8 {[%emt 0:00:01]} 10. h3 {[%emt 0:00:02]} Nf8 {[%emt 0:00:01]} 11. Ne5 {[%emt 0:00:04]} Ng6 {[%emt 0:00:02]} 12. Nxg6 {[%emt 0:00:03]} hxg6 {[%emt 0:00:02]} 13. Qb3 {[%emt 0:00:05]} Nh5 {[%emt 0:00:04]} 14. Bxe7 {[%emt 0:00:04]} Qxe7 {[%emt 0:00:02]} 15. Rae1 {[%emt 0:00:07]} Qg5 {[%emt 0:00:04]} 16. f4 {[%emt 0:00:12]} Qg3 {[%emt 0:00:10]} 17. Ne2 {[%emt 0:00:46]} Qxe3+ {[%emt 0:00:08]} 18. Kh2 {[%emt 0:00:05]} Qe7 {[%emt 0:00:05]} 19. f5 {[%emt 0:00:08]} Qd6+ {[%emt 0:00:05]} 20. Kg1 {[%emt 0:00:03]} Bxf5 {[%emt 0:00:09]} 21. Bxf5 {[%emt 0:00:04]} gxf5 {[%emt 0:00:02]} 22. Qxb7 {[%emt 0:00:06]} Rab8 {[%emt 0:00:04]} 23. Qxa7 {[%emt 0:00:05]} Rxb2 {[%emt 0:00:03]} 24. Qa6 {[%emt 0:00:41]} Rbxe2 {[%emt 0:00:08]} 25. Rxe2 {[%emt 0:00:02]} Rxe2 {[%emt 0:00:05]} 26. Qxe2 {[%emt 0:00:03]} g6 {[%emt 0:00:01]} 27. Qe5 {[%emt 0:00:13]} Qb4 {[%emt 0:00:07]} 28. g4 {[%emt 0:00:18]} Ng7 {[%emt 0:00:09]} 29. g5 {[%emt 0:00:12]} Nh5 {[%emt 0:00:04]} 30. Qe8+ {[%emt 0:00:06]} Kg7 {[%emt 0:00:02]} 31. Qe5+ {[%emt 0:00:03]} Kg8 {[%emt 0:00:03]} 32. Qe8+ {[%emt 0:00:04]} Kg7 {[%emt 0:00:02]} 33. Qe5+ {[%emt 0:00:04]} Kg8 {[%emt 0:00:01] (Lag: Av=0.82s, max=3.1s)} 1/2-1/2

[Event "Stay Safe Play From Home 422"]
[Site "Emanuel Lasker Arena"]
[Date "2020.08.30"]
[Round "6"]
[White "Sadbat1122"]
[Black "Kongle"]
[Result "0-1"]
[WhiteElo "1652"]
[BlackElo "1741"]
[Annotator "NA"]
[PlyCount "54"]
[EventDate "2020.08.30"]
[EventType "swiss (blitz)"]
[TimeControl "300"]

1. e4 {[%emt 0:00:05]} d5 {[%emt 0:00:08]} 2. exd5 {[%emt 0:00:02]} Nf6 {[%emt 0:00:04]} 3. d4 {[%emt 0:00:02]} Nxd5 {[%emt 0:00:01]} 4. c4 {[%emt 0:00:02]} Nb4 {[%emt 0:00:01]} 5. Qa4+ {[%emt 0:00:11]} N8c6 {[%emt 0:00:04]} 6. d5 {[%emt 0:00:04]} b5 {[%emt 0:00:02]} 7. cxb5 {[%emt 0:00:21]} Qxd5 {[%emt 0:00:03]} 8. bxc6 {[%emt 0:00:06]} Qe4+ {[%emt 0:00:02]} 9. Be3 {[%emt 0:00:21]} Nc2+ {[%emt 0:00:07]} 10. Qxc2 {[%emt 0:00:06]} Qxc2 {[%emt 0:00:02]} 11. Nd2 {[%emt 0:00:07]} Qxb2 {[%emt 0:00:02]} 12. Rb1 {[%emt 0:00:02]} Qxa2 {[%emt 0:00:01]} 13. Bc4 {[%emt 0:00:03]} Qa5 {[%emt 0:00:04]} 14. Ngf3 {[%emt 0:00:03]} Bf5 {[%emt 0:00:08]} 15. Rd1 {[%emt 0:00:22]} e6 {[%emt 0:00:04]} 16. O-O {[%emt 0:00:03]} Bd6 {[%emt 0:00:10]} 17. Ra1 {[%emt 0:00:07]} Qb4 {[%emt 0:00:16]} 18. Nd4 {[%emt 0:00:18]} Bg6 {[%emt 0:00:20]} 19. h4 {[%emt 0:00:26]} O-O {[%emt 0:00:14]} 20. h5 {[%emt 0:00:09]} Bxh5 {[%emt 0:00:01]} 21. Rfb1 {[%emt 0:00:03]} Qc3 {[%emt 0:00:29]} 22. Rc1 {[%emt 0:00:21]} Qb4 {[%emt 0:00:13]} 23. Rab1 {[%emt 0:00:05]} Qa5 {[%emt 0:00:11]} 24. Rb5 {[%emt 0:00:03]} Qa3 {[%emt 0:00:03]} 25. N2b3 {[%emt 0:00:42]} Bg6 {[%emt 0:00:10]} 26. Ra1 {[%emt 0:00:11]} Qb2 {[%emt 0:00:03]} 27. Bc1 {[%emt 0:00:29]} Qc3 {[%emt 0:00:07] Time (Lag: Av=1.16s, max=3.5s)} 0-1